Workbook

Sheet 项目库汇总表
A1: 君山区2021年巩固脱贫攻坚成果和乡村振兴衔接入库项目明细表
A2: 序号 | B2: 项目 类别 | C2: 项目名称 | D2: 建设性质 | E2: 建设任务 | F2: 实施地点 | H2: 补助 标准 | I2: 资金规模和筹资方式 | L2: 绩效目标 | M2: 带贫减贫机制 | N2: 受益 对象 | O2: 计划完工时间（年） | P2: 责任单位 | Q2: 备注
F3: 乡镇名 | G3: 村组名 | I3: 合计 （万元） | J3: 财政资金 （万元） | K3: 其他 （万元）
A4: 1 | B4: 产业 发展 | C4: 蔬菜基地农产品运输道路硬化 | D4: 新建 | E4: 长830米，宽3米，厚0.2米 | F4: 广兴洲镇 | G4: 六支渠村五一二组 | H4: 130元/平方米 | I4: 35 | J4: 35 | K4: 0 | L4: 可改善农产品运输及居民安全出行问题，方便生产生活，可覆盖4户14人脱贫户预计增收500元/年。 | M4: 直接受益 | N4: 480人 | O4: 2021 | P4: 六支渠村 | R4: =830*3*135 -> 336150
A5: 2 | B5: 产业 发展 | C5: 稻虾基地农产品运输道路硬化 | D5: 新建 | E5: 长370米，宽3米，厚0.2米 | F5: 广兴洲镇 | G5: 六支渠村五一六组 | H5: 130元/平方米 | I5: 15.5 | J5: 15.5 | K5: 0 | L5: 可改善农产品运输及居民安全出行问题，方便生产生活，可以给3户12人脱贫户预计增收400元/年。 | M5: 直接受益 | N5: 510人 | O5: 2021 | P5: 六支渠村 | R5: =370*3*135 -> 149850
A6: 3 | B6: 产业 发展 | C6: 稻虾套养基地台圳硬化 | D6: 新建 | E6: 沟渠硬化650米，宽0.6米，高0.8米 | F6: 广兴洲镇 | G6: 团湖村 五丰一组 | H6: 230元/平方米 | I6: 16.5 | J6: 16.5 | K6: 0 | L6: 可改善、增加水田灌溉面积，提高农业生产效率，可以给3户9人脱贫户预计增收300元/年。 | M6: 直接受益 | N6: 172人 | O6: 2021 | P6: 团湖村 | R6: =(0.8*0.1*2+0.8*0.1)*650*621+3.4*650*40 -> 185276
A7: 4 | B7: 产业 发展 | C7: 稻虾套养基地台圳硬化 | D7: 新建 | E7: 沟渠硬化840米，宽0.6米，高0.8米 | F7: 广兴洲镇 | G7: 团湖村 北洲五组 | H7: 230元/平方米 | I7: 20.5 | J7: 20.5 | K7: 0 | L7: 可改善、增加水田灌溉面积，提高农业生产效率，可以给3户10人脱贫户预计增收400元/年。 | M7: 直接受益 | N7: 162人 | O7: 2021 | P7: 团湖村 | R7: =(0.8*0.1*2+0.8*0.1)*840*621+3.4*840*40 -> 239433.6
A8: 5 | B8: 产业 发展 | C8: 蔬菜种植基地基础设施建设 | D8: 新建 | E8: 沟渠硬化1400米，宽0.5米，高0.6米 | F8: 广兴洲镇 | G8: 胜利街社区镇西五组 | H8: 230元/平方米 | I8: 26 | J8: 26 | K8: 0 | L8: 可改善、增加水田灌溉面积，提高农业生产效率可覆盖脱贫户6户19人预计增收400元/年。 | M8: 直接受益 | N8: 380人 | O8: 2021 | P8: 胜利街社区 | R8: =(0.6*0.1*2+0.7*0.1)*1400*621+2.6*1400*40 -> 310786
A9: 6 | B9: 产业 发展 | C9: 蔬菜基地农产品运输道路硬化 | D9: 新建 | E9: 长500米，宽3米，厚0.2米 | F9: 广兴洲镇 | G9: 胜利街社区镇西四组 | H9: 130元/平方米 | I9: 19.5 | J9: 19.5 | K9: 0 | L9: 可改善农产品运输及居民安全出行问题，方便生产生活，可覆盖脱贫户6户18人增收350元/年。 | M9: 直接受益 | N9: 170人 | O9: 2021 | P9: 胜利街社区 | R9: =500*3*135 -> 202500
A10: 7 | B10: 产业 发展 | C10: 蔬菜基地农产品运输道路硬化 | D10: 新建 | E10: 长383米，宽3米，厚0.2米 | F10: 广兴洲镇 | G10: 洪市村 五组 | H10: 130元/平方米 | I10: 15.5 | J10: 15.5 | K10: 0 | L10: 可改善农产品运输及居民安全出行问题，方便生产生活，覆盖脱贫户4户13人增收450元/年 | M10: 直接受益 | N10: 350人 | O10: 2021 | P10: 洪市村 | R10: =383*3*135 -> 155115
A11: 8 | B11: 产业 发展 | C11: 种养殖基地沟渠硬化 | D11: 新建 | E11: 沟渠硬化700米，宽0.5米，高0.6米，现浇 | F11: 广兴洲镇 | G11: 保庆村 一组 | H11: 230元/平方米 | I11: 17.5 | J11: 17.5 | K11: 0 | L11: 可改善、增加水田灌溉面积，提高农业生产效率，覆盖脱贫户5户15人预计增收400元/年 | M11: 直接受益 | N11: 460人 | O11: 2021 | P11: 保庆村 | R11: =(0.6*0.1*2+0.7*0.1)*700*621+2.6*700*40 -> 155393
A12: 9 | B12: 产业 发展 | C12: 稻虾基地沟渠硬化 | D12: 新建 | E12: 沟渠硬化700米，宽0.5米，高0.6米，现浇 | F12: 广兴洲镇 | G12: 保庆村 二十一组 | H12: 230元/平方米 | I12: 17.5 | J12: 17.5 | K12: 0 | L12: 可改善、增加水田灌溉面积，提高农业生产效率， 可覆盖脱贫户3户8人预计增收300元/年。 | M12: 直接受益 | N12: 340人 | O12: 2021 | P12: 保庆村 | R12: =(0.6*0.1*2+0.7*0.1)*700*621+2.6*700*40 -> 155393
A13: 10 | B13: 产业 发展 | C13: 稻虾基地农产品运输道路硬化 | D13: 新建 | E13: 长700米，宽3米，厚0.2米 | F13: 广兴洲镇 | G13: 联合村 联合六组 | H13: 130元/平方米 | I13: 27.5 | J13: 27.5 | K13: 0 | L13: 可改善农产品运输及居民安全出行问题，方便生产生活， 可覆盖脱贫户3户9人预计增收350元/年。 | M13: 直接受益 | N13: 165人 | O13: 2021 | P13: 联合村 | R13: =700*3*135 -> 283500
A14: 11 | B14: 产业 发展 | C14: 龙虾基地运输道路硬化 | D14: 新建 | E14: 长380米 宽2.8米，厚0.2米 | F14: 广兴洲镇 | G14: 殷家铺社区普兴六组 | H14: 130元/平方米 | I14: 15 | J14: 15 | K14: 0 | L14: 预计解决小龙虾养殖基地运输及脱贫人口出行，可覆盖脱贫户5户18人预计增收500元/年。 | M14: 直接受益 | N14: 130人 | O14: 2021 | P14: 殷家铺社区 | R14: =380*2.8*135 -> 143640
A15: 12 | B15: 产业 发展 | C15: 稻虾基地沟渠硬化 | D15: 新建 | E15: 长800米，宽0.6米，高0.8米，现浇 | F15: 广兴洲镇 | G15: 殷家铺社区普兴三组、十二组 | H15: 230元/平方米 | I15: 18.5 | J15: 18.5 | K15: 0 | L15: 可改善、增加水田灌溉面积，提高农业生产效率，可覆盖脱贫户3户9人预计增收400元/年。 | M15: 直接受益 | N15: 220人 | O15: 2021 | P15: 殷家铺社区 | R15: =(0.8*0.1*2+0.8*0.1)*800*621+3.4*800*40 -> 228032
A16: 13 | B16: 产业 发展 | C16: 稻虾基地沟渠硬化 | D16: 新建 | E16: 长500米，宽0.6米，高0.8米，现浇 | F16: 广兴洲镇 | G16: 殷家铺社区同兴一组 | H16: 230元/平方米 | I16: 15 | J16: 15 | K16: 0 | L16: 可改善、增加水田灌溉面积，提高农业生产效率，可覆盖脱贫户4户12人预计增收300元/年。 | M16: 直接受益 | N16: 230人 | O16: 2021 | P16: 殷家铺社区 | R16: =(0.8*0.1*2+0.8*0.1)*500*621+3.4*500*40 -> 142520
A17: 14 | B17: 产业 发展 | C17: 蔬菜基地产品运输道路硬化 | D17: 新建 | E17: 长500米，宽3米，厚0.2米 | F17: 广兴洲镇 | G17: 沿江村 江南三组 江陵七组 | H17: 130元/平方米 | I17: 19.5 | J17: 19.5 | K17: 0 | L17: 可改善、增加水田灌溉面积，提高农业生产效率， 可覆盖脱贫户6户16人预计增收400元/年。 | M17: 直接受益 | N17: 320人 | O17: 2021 | P17: 沿江村 | R17: =500*3*135 -> 202500
A18: 15 | B18: 产业 发展 | C18: 稻虾基地配套水利设施 | D18: 新建 | E18: 新建机埠4个 | F18: 广兴洲镇 | G18: 永明村 三、四、十六组 | H18: 4万/座 | I18: 16 | J18: 16 | K18: 0 | L18: 可改善、增加水田灌溉面积，提高农业生产效率，可覆盖脱贫户4户12人预计增收450元/年。 | M18: 直接受益 | N18: 300人 | O18: 2021 | P18: 永明村 | R18: 400000
A19: 16 | B19: 产业 发展 | C19: 蔬菜基地农产品运输通道硬化 | D19: 新建 | E19: 长1280米，宽3米，厚0.2米 | F19: 广兴洲镇 | G19: 黄安村 四组五组 | H19: 130元/平方米 | I19: 45 | J19: 45 | K19: 0 | L19: 可改善农产品运输及居民安全出行问题，方便生产生活，可覆盖脱贫户5户18人预计增加350元/年。 | M19: 直接受益 | N19: 310人 | O19: 2021 | P19: 黄安村 | R19: =1280*3*135 -> 518400
A20: 17 | B20: 产业 发展 | C20: 蔬菜基地农产品运输通道硬化 | D20: 新建 | E20: 长530米，宽3米，厚0.2米 | F20: 广兴洲镇 | G20: 黄安村 七组八组 | H20: 130元/平方米 | I20: 21.5 | J20: 21.5 | K20: 0 | L20: 可改善农产品运输及居民安全出行问题，方便生产生活， 可覆盖脱贫户6户19人预计增加300元/年。 | M20: 直接受益 | N20: 320人 | O20: 2021 | P20: 黄安村 | R20: =530*3*135 -> 214650
A21: 18 | B21: 产业 发展 | C21: 蔬菜基地农产品运输通道硬化 | D21: 新建 | E21: 长600米，宽3米，厚0.2米 | F21: 广兴洲镇 | G21: 合兴村 三组 | H21: 130元/平方米 | I21: 23.5 | J21: 23.5 | K21: 0 | L21: 可改善农产品运输及居民安全出行问题，方便生产生活， 可覆盖脱贫户3户11人预计增收400元/年。 | M21: 直接受益 | N21: 280人 | O21: 2021 | P21: 合兴村 | R21: =600*3*135 -> 243000
A22: 19 | B22: 产业 发展 | C22: 蔬菜基地农产品运输通道硬化 | D22: 新建 | E22: 长686米，宽3米，厚0.2米 | F22: 广兴洲镇 | G22: 合兴村 六组 | H22: 130元/平方米 | I22: 26.5 | J22: 26.5 | K22: 0 | L22: 可改善农产品运输及居民安全出行问题，方便生产生活， 可覆盖脱贫户4户12人预计增收300元/年。 | M22: 直接受益 | N22: 420人 | O22: 2021 | P22: 合兴村 | R22: =686*3*135 -> 277830
A23: 20 | B23: 产业 发展 | C23: 蔬菜基地农产品运输通道硬化 | D23: 新建 | E23: 长750米，宽2.5米，厚0.2米 | F23: 广兴洲镇 | G23: 合兴村 八组 | H23: 130元/平方米 | I23: 28.5 | J23: 28.5 | K23: 0 | L23: 可改善农产品运输及居民安全出行问题，方便生产生活， 可覆盖脱贫户3户9人预计增收400元/年。 | M23: 直接受益 | N23: 145人 | O23: 2021 | P23: 合兴村 | R23: =750*2.5*135 -> 253125
A24: 21 | B24: 产业 发展 | C24: 稻虾基地农产品运输道路硬化 | D24: 新建 | E24: 长568米，其中（400米宽3米，168米宽2.3米），厚0.2米。 | F24: 广兴洲镇 | G24: 六支渠村五一十组 | H24: 130元/平方米 | I24: 21 | J24: 21 | K24: 0 | L24: 可改善农产品运输及居民安全出行问题，方便生产生活，可以给4户14人脱贫户预计增收500元/年 | M24: 直接受益 | N24: 480人 | O24: 2021 | P24: 六支渠村 | R24: =430*3*135 -> 174150
A25: 22 | B25: 产业 发展 | C25: 蔬菜种植基地基础设施建设 | D25: 新建 | E25: 灌渠拆除新建460米 | F25: 广兴洲镇 | G25: 胜利街社区胜利三组 | H25: 350元/米 | I25: 15 | J25: 15 | K25: 0 | L25: 可改善、增加水田灌溉面积，提高农业生产效率，可覆盖脱贫户5户18人预计增加350元/年。 | M25: 直接受益 | N25: 210人 | O25: 2021 | P25: 胜利街社区
A26: 23 | B26: 产业 发展 | C26: 机埠新建及台圳新建 | D26: 新建 | E26: 机埠1个、台圳260米，DN600涵管30米。 | F26: 广兴洲镇 | G26: 永明村十六组 | H26: 按实际标准 | I26: 18 | J26: 18 | K26: 0 | L26: 可改善农产品运输及居民安全出行问题，方便生产生活，可覆盖脱贫户4户12人预计增收450元/年。 | M26: 直接受益 | N26: 280人 | O26: 2021 | P26: 永明村
A27: 24 | B27: 产业 发展 | C27: 农产品运输道路拓宽 | D27: 新建 | E27: 前210米两侧各拓宽1米，厚0.22米，后500米两侧拓宽0.5米，厚0.22米，砖砌挡土墙700米。 | F27: 广兴洲镇 | G27: 合兴村五、六、八组 | H27: 按实际标准 | I27: 24 | J27: 24 | K27: 0 | L27: 可改善农产品运输及居民安全出行问题，方便生产生活，可覆盖脱贫户5户18人预计增收500元/年。 | M27: 直接受益 | N27: 286人 | O27: 2021 | P27: 合兴村
A28: 25 | B28: 产业 发展 | C28: 菜基地农产品运输通道硬化 | D28: 新建 | E28: 桥面长14米，宽5.5米，配装护栏,路面长50米，宽5.5米。 | F28: 广兴洲镇 | G28: - | H28: 按实际标准 | I28: 18 | J28: 18 | K28: 0 | L28: 可改善农产品运输及居民安全出行问题，方便生产生活，可覆盖脱贫户6户19人预计增收400元/年。 | M28: 直接受益 | N28: 480人 | O28: 2021 | P28: 广兴洲镇
A29: 26 | B29: 产业 发展 | C29: 一村一园产业扶贫基地 | D29: 新建 | E29: 100亩基地翻耕、苗木购买，架设电线、围栏。 | F29: 许市镇 | G29: 黄金村 三组 | H29: 600元/亩 | I29: 13 | J29: 13 | K29: 0 | L29: 通过果树种植，集体创收，带动脱贫人口，可覆盖该村脱贫户23人，人均增收1000元以上。 | M29: 收益分红、务工帮扶、示范辐射 | N29: 67人 | O29: 2021 | P29: 黄金村
A30: 27 | B30: 产业 发展 | C30: 一村一园产业扶贫基地 | D30: 新建 | E30: 150亩基地翻耕、苗木购买 | F30: 许市镇 | G30: 铺子嘴村四组 | H30: 600元/亩 | I30: 15 | J30: 15 | K30: 0 | L30: 通过果树种植，集体创收，带动脱贫人口，可覆盖该村脱贫户19人，人均增收800元以上 | M30: 收益分红、务工帮扶、示范辐射 | N30: 85人 | O30: 2021 | P30: 铺子嘴村
A31: 28 | B31: 产业 发展 | C31: 一村一园产业扶贫基地 | D31: 新建 | E31: 80亩基地翻耕、苗木购买，道路硬化长200米、宽3米 | F31: 许市镇 | G31: 崇庆村 二组 | H31: 600元/亩 | I31: 13.5 | J31: 13.5 | K31: 0 | L31: 通过果树种植，集体创收，带动脱贫人口， 可覆盖该村脱贫户17人，人均增收500元以上。 | M31: 收益分红、务工帮扶、示范辐射 | N31: 102人 | O31: 2021 | P31: 崇庆村
A32: 29 | B32: 产业 发展 | C32: 一村一园产业扶贫基地 | D32: 新建 | E32: 60亩基地翻耕、苗木购买，沟渠硬化长134米、宽0.4米、高0.5米 | F32: 许市镇 | G32: 许家牌村三组 | H32: 600元/亩 | I32: 9.2 | J32: 9.2 | K32: 0 | L32: 通过果树种植，集体创收，带动脱贫人口，可覆盖该村脱贫户31人，人均增收800元以上。 | M32: 收益分红、务工帮扶、示范辐射 | N32: 84人 | O32: 2021 | P32: 许家牌村
A33: 30 | B33: 产业 发展 | C33: 一村一园产业扶贫基地 | D33: 新建 | E33: 50亩基地翻耕、苗木购买 | F33: 许市镇 | G33: 凉亭村 | H33: 600元/亩 | I33: 5 | J33: 5 | K33: 0 | L33: 通过果树种植，集体创收，带动脱贫人口，可覆盖该村脱贫户26人，人均增收500元以上。 | M33: 收益分红、务工帮扶、示范辐射 | N33: 56人 | O33: 2021 | P33: 凉亭村
A34: 31 | B34: 产业 发展 | C34: 一村一园产业扶贫基地 | D34: 新建 | E34: 75亩基地翻耕、苗木购买 | F34: 许市镇 | G34: 横山岭村 | H34: 600元/亩 | I34: 7.5 | J34: 7.5 | K34: 0 | L34: 通过果树种植，集体创收，带动脱贫人口，可覆盖该村脱贫户20人，人均增收500元以上。 | M34: 收益分红、务工帮扶、示范辐射 | N34: 42人 | O34: 2021 | P34: 横山岭村
A35: 32 | B35: 产业 发展 | C35: 一村一园产业扶贫基地 | D35: 新建 | E35: 200亩基地翻耕、苗木购买，道路硬化长180米、宽2.8米。 | F35: 许市镇 | G35: 柿树岭村二组 | H35: 600元/亩 | I35: 19 | J35: 19 | K35: 0 | L35: 通过果树种植，集体创收，带动脱贫人口，可覆盖该村脱贫户41人，人均增收300元以上。 | M35: 收益分红、务工帮扶、示范辐射 | N35: 205人 | O35: 2021 | P35: 柿树岭村
A36: 33 | B36: 产业 发展 | C36: 一村一园产业扶贫基地 | D36: 新建 | E36: 65亩基地翻耕、苗木购买 | F36: 许市镇 | G36: 洪水港社区三组、七组 | H36: 600元/亩 | I36: 7 | J36: 7 | K36: 0 | L36: 通过果树种植，集体创收，带动脱贫人口，可覆盖该村脱贫户20人，人均增收500元以上。 | M36: 收益分红、务工帮扶、示范辐射 | N36: 55人 | O36: 2021 | P36: 洪水港 社区
A37: 34 | B37: 产业 发展 | C37: 水果基地冷库建设 | D37: 新建 | E37: 钢结构冷藏仓库350平方米 | F37: 许市镇 | G37: 柿树岭村一组 | H37: 1700元/平方米 | I37: 38 | J37: 38 | K37: 0 | L37: 发展水果产业，提高脱贫户收入水平，巩固脱贫成果， 可覆盖该村脱贫户41人，人均增收500元/年以上。 | M37: 收益分红、务工帮扶、冷贮 | N37: 120人 | O37: 2021 | P37: 柿树岭村
A38: 35 | B38: 产业 发展 | C38: 水果基地冷库制冷机组 | D38: 新建 | E38: 库体保温结构及制冷机组 | F38: 许市镇 | G38: 柿树岭村一组 | H38: 20万元/组 | I38: 22 | J38: 22 | K38: 0 | L38: 发展水果产业，提高脱贫户收入水平，巩固脱贫成果，可覆盖该村脱贫户41人，人均增收500元/年以上。 | M38: 收益分红、务工帮扶、冷贮 | N38: 120人 | O38: 2021 | P38: 柿树岭村
A39: 36 | B39: 产业 发展 | C39: 水稻种植基地配套设施 | D39: 新建 | E39: 沟渠硬化800米,宽0.4米x高0.5米(现浇) | F39: 许市镇 | G39: 黄金村 二组 | H39: 240元/米 | I39: 16.5 | J39: 16.5 | K39: 0 | L39: 可改善、增加水田灌溉面积，提高农业生产效率，可覆盖该村脱贫户13人，人均增收300元/年以上。 | M39: 直接受益 | N39: 131人 | O39: 2021 | P39: 黄金村
A40: 37 | B40: 产业 发展 | C40: 水稻种植基地配套设施 | D40: 新建 | E40: 沟渠硬化1300米,宽0.4米x高0.5米(现浇) | F40: 许市镇 | G40: 黄金村 四组 | H40: 240元/米 | I40: 26.5 | J40: 26.5 | K40: 0 | L40: 可改善、增加水田灌溉面积，提高农业生产效率，可覆盖该村脱贫户19人，人均增收300元/年以上。 | M40: 直接受益 | N40: 92人 | O40: 2021 | P40: 黄金村
A41: 38 | B41: 产业 发展 | C41: 蔬菜基地农产品运输通道 | D41: 新建 | E41: 硬化道路420米，宽2.8米，厚0.2米 | F41: 许市镇 | G41: 横山岭村八组 | H41: 145元/米 | I41: 16.5 | J41: 16.5 | K41: 0 | L41: 可改善农产品运输及居民安全出行问题，方便生产生活，可覆盖村脱贫4户12人均增350元/年。 | M41: 直接受益 | N41: 78人 | O41: 2021 | P41: 横山岭村
A42: 39 | B42: 产业 发展 | C42: 水稻基地配套水利设施建设 | D42: 新建 | E42: 出水沟硬化500米，宽0.4米x高0.5米(现浇)；更换抽水机组；进水沟护坡3米 | F42: 许市镇 | G42: 横山岭村八组 | H42: 230元/米 | I42: 16 | J42: 16 | K42: 0 | L42: 可改善、增加水田灌溉面积，提高农业生产效率，可覆盖村脱贫户4户11人均增收400元/年。 | M42: 直接受益 | N42: 110人 | O42: 2021 | P42: 横山岭村
A43: 40 | B43: 产业 发展 | C43: 蔬菜基地农产品运输通道 | D43: 新建 | E43: 道路硬化500米，宽2.6米，厚0.2米 | F43: 许市镇 | G43: 金盆村 五组 | H43: 145元/米 | I43: 18.8 | J43: 18.8 | K43: 0 | L43: 可改善农产品运输及居民安全出行问题，方便生产生活，可覆盖该村脱贫户7户21人，人均增收300元 /年。 | M43: 直接受益 | N43: 201人 | O43: 2021 | P43: 金盆村
A44: 41 | B44: 产业 发展 | C44: 水稻基地配套水利设施建设 | D44: 新建 | E44: 新建机埠一座，沟渠硬化500米,宽0.4米x高0.5米(现浇) | F44: 许市镇 | G44: 金盆村 三组 | H44: 按实际标准 | I44: 13 | J44: 13 | K44: 0 | L44: 可改善、增加水田灌溉面积，提高农业生产效率，可覆盖该村脱贫9户31人，预计增收300元/年 。 | M44: 直接受益 | N44: 183人 | O44: 2021 | P44: 金盆村
A45: 42 | B45: 产业 发展 | C45: 水稻产业基地产品运输通道 | D45: 新建 | E45: 道路硬化480米，宽2.8米，厚0.2米 | F45: 许市镇 | G45: 柿树岭村五组 | H45: 145元/米 | I45: 19 | J45: 19 | K45: 0 | L45: 可改善农产品运输及居民安全出行问题，方便生产生活，可覆盖脱贫户4户13人，预计增收400元以上。 | M45: 直接受益 | N45: 100人 | O45: 2021 | P45: 柿树岭村
A46: 43 | B46: 产业 发展 | C46: 水稻基地配套水利设施建设 | D46: 新建 | E46: 沟渠硬长720米，宽0.4米x高0.6米(现浇)。 | F46: 许市镇 | G46: 洪水港 社区 荷花二组 | H46: 240元/米 | I46: 17.5 | J46: 17.5 | K46: 0 | L46: 可改善、增加水田灌溉面积，提高农业生产效率， 可覆盖脱贫户5户17人，预计增收350元/年。 | M46: 直接受益 | N46: 90人 | O46: 2021 | P46: 洪水港 社区
A47: 44 | B47: 产业 发展 | C47: 水稻产业基地配套水利设施建设 | D47: 新建 | E47: 机埠新建及设备更新;进水渠硬化40米，底宽3米，坡高1.8米;出水沟渠硬化300米（0.5*0.5）(现浇)。 | F47: 许市镇 | G47: 铺子嘴村三组 | H47: 按实际标准 | I47: 15 | J47: 15 | K47: 0 | L47: 可改善、增加水田灌溉面积，提高农业生产效率，可覆盖该村脱贫户5户18人，人均增收300元以上。 | M47: 直接受益 | N47: 326人 | O47: 2021 | P47: 铺子嘴村
A48: 45 | B48: 产业 发展 | C48: 高新村二组道路硬化 | D48: 新建 | E48: 道路硬化长200米，宽3.5米,厚0.2米，护坡，路基修复150米。 | F48: 许市镇 | G48: 高新村 二组 | H48: 130元/米 | I48: 12 | J48: 12 | K48: 0 | L48: 可改善农产品运输及居民安全出行问题，方便生产生活，可覆盖该村脱贫户4户17人，人均增收300元以上 | M48: 直接受益 | N48: 66人 | O48: 2021 | P48: 高新村
A49: 46 | B49: 产业 发展 | C49: 水稻产业基地产品运输通道 | D49: 新建 | E49: 道路硬化650米，宽3米，厚0.2米 | F49: 许市镇 | G49: 高新村 二组 | H49: 135元/平方米 | I49: 28 | J49: 28 | K49: 0 | L49: 可改善农产品运输及居民安全出行问题，方便生产生活，可覆盖脱贫户4户13人，预计增收400元以上。 | M49: 直接受益 | N49: 59人 | O49: 2021 | P49: 高新村
A50: 47 | B50: 产业 发展 | C50: 水稻产业基地产品运输通道 | D50: 新建 | E50: 道路硬化250米，宽2.6米，厚0.2米 | F50: 许市镇 | G50: 许家牌村三组 | H50: 135元/米 | I50: 10.5 | J50: 10.5 | K50: 0 | L50: 可改善农产品运输及居民安全出行问题，方便生产生活，可覆盖村脱贫4户12人均增350元/年。 | M50: 直接受益 | N50: 78人 | O50: 2021 | P50: 许家牌村
A51: 48 | B51: 产业 发展 | C51: 水稻产业基地产品运输通道 | D51: 新建 | E51: 道路硬化520米，宽2.6米，厚0.2米 | F51: 许市镇 | G51: 许家牌村一组 | H51: 135元/米 | I51: 19.5 | J51: 19.5 | K51: 0 | L51: 可改善农产品运输及居民安全出行问题，方便生产生活， 可覆盖脱贫户4户12人预计增收450元/年。 | M51: 直接受益 | N51: 63人 | O51: 2021 | P51: 许家牌村
A52: 49 | B52: 产业 发展 | C52: 水稻产业基地水利配套设施建设 | D52: 新建 | E52: 沟渠硬化720米，底宽0.5米，高0.5米，现浇 | F52: 许市镇 | G52: 崇庆村 五组 | H52: 240元/米 | I52: 16.2 | J52: 16.2 | K52: 0 | L52: 可改善、增加水田灌溉面积，提高农业生产效率， 可覆盖脱贫户4户13人，预计增收400元以上。 | M52: 直接受益 | N52: 105人 | O52: 2021 | P52: 崇庆村
A53: 50 | B53: 产业 发展 | C53: 水稻产业基地水利配套设施建设 | D53: 新建 | E53: 沟渠硬化600米，底宽0.5米，高0.5米，现浇 | F53: 许市镇 | G53: 崇庆村 五组 | H53: 240元/米 | I53: 15 | J53: 15 | K53: 0 | L53: 可改善、增加水田灌溉面积，提高农业生产效率， 可覆盖脱贫户6户19人预计增加300元/年。 | M53: 直接受益 | N53: 57人 | O53: 2021 | P53: 崇庆村
A54: 51 | B54: 产业 发展 | C54: 水稻产业基地产品运输通道 | D54: 新建 | E54: 道路硬化520米，宽2.8m，厚0.2米 | F54: 许市镇 | G54: 凉亭村 三、四组 | H54: 135元/平方米 | I54: 20.5 | J54: 20.5 | K54: 0 | L54: 可改善农产品运输及居民安全出行问题，方便生产生活，可覆盖脱贫户5户15人预计增收400元/年。 | M54: 直接受益 | N54: 113人 | O54: 2021 | P54: 凉亭村
A55: 52 | B55: 产业 发展 | C55: 水稻产业基地水利配套设施建设 | D55: 新建 | E55: 新建泵房一座，机械设备更新，进水渠砌石护坡及硬化80米，渠道硬化500米 | F55: 许市镇 | G55: 铺子嘴村三组 | H55: 按实际标准 | I55: 22 | J55: 22 | K55: 0 | L55: 可改善、增加水田灌溉面积，提高农业生产效率，可覆盖脱贫户4户12人预计增收450元/年 | M55: 直接受益 | N55: 100人 | O55: 2021 | P55: 铺子嘴村
A56: 53 | B56: 产业 发展 | C56: 配套水利设施建设 | D56: 新建 | E56: 铺设自来水主管延伸，入户管网3800米 | F56: 许市镇 | G56: 许市镇 | H56: 统一标准 | I56: 35 | J56: 35 | K56: 0 | L56: 解决脱贫人口用水问题17户52人，方便生产生活，可覆盖脱贫户3户9人预计增收400元/年。 | M56: 直接受益 | N56: 105人 | O56: 2021 | P56: 许市镇
A57: 54 | B57: 产业 发展 | C57: 农田灌溉配套水利设施建设 | D57: 新建 | E57: 黄金村8个机埠、凉亭村1个机埠、横山岭村1机埠、铺子嘴村1个机埠、镇2个机埠及配套水利设施项目 | F57: 许市镇 | G57: 许市镇 | H57: 统一标准 | I57: 43.4457 | J57: 43.4457 | K57: 0 | L57: 解决我镇农田灌溉问题，方便生产生活，可覆盖脱贫户4户12人预计增收450元/年。 | M57: 直接受益 | N57: 4个村 | O57: 2021 | P57: 许市镇
A58: 55 | B58: 产业 发展 | C58: 水稻产业基地水利配套设施建设 | D58: 新建 | E58: 机埠新建及出水沟硬化260米，宽0.4米，高0.5米(现浇)；进水沟硬化120米，宽0.6米，高0.5米（现浇） | F58: 许市镇 | G58: 黄金村 七组 | H58: 按实际标准 | I58: 18 | J58: 18 | K58: 0 | L58: 可改善、增加水田灌溉面积，提高农业生产效率，可覆盖脱贫户3户9人预计增收400元/年。 | M58: 直接受益 | N58: 150人 | O58: 2021 | P58: 黄金村
A59: 56 | B59: 产业 发展 | C59: 特种鱼养殖基地产品运输通道 | D59: 新建 | E59: 硬化道路915米，宽3米，厚0.2米 | F59: 钱粮湖镇 | G59: 东北湖 渔场 三、四组 | H59: 130元/平方 | I59: 37 | J59: 37 | K59: 0 | L59: 解决我场运输问题和脱贫人口的安全出行方便生产生活，可覆盖脱贫户4户12人预计增收450元/年。 | M59: 直接受益 | N59: 170人 | O59: 2021 | P59: 东北湖 渔场
A60: 57 | B60: 产业 发展 | C60: 蔬菜种植基地农产品运输通道 | D60: 新建 | E60: 道路硬化375米，宽3米，厚0.2米 | F60: 钱粮湖镇 | G60: 古月湖村二组 | H60: 178元/平方 | I60: 16 | J60: 16 | K60: 0 | L60: 解决蔬菜基地的运输问题和脱贫人口的安全出行，方便生产生活，可覆盖脱贫户6户19人预计增加300元/年。 | M60: 直接受益 | N60: 62人 | O60: 2021 | P60: 古月湖村
A61: 58 | B61: 产业 发展 | C61: 蔬菜种植基地农产品运输通道 | D61: 新建 | E61: 拆除重建宽6米，长15米桥一座，原桥拆除、桥面硬化、涵闸硬化 | F61: 钱粮湖镇 | G61: 古月湖村一组 | H61: 1333元/平方 | I61: 12 | J61: 12 | K61: 0 | L61: 解决一组村民的运输问题和脱贫人口的安全出行，方便生产生活，可覆盖脱贫户5户18人预计增收500元/年。 | M61: 直接受益 | N61: 608人 | O61: 2021 | P61: 古月湖村
A62: 59 | B62: 产业 发展 | C62: 蔬菜种植基地农产品运输通道 | D62: 新建 | E62: 道路硬化长940米，宽3米，厚0.2米，涵闸3座 | F62: 钱粮湖镇 | G62: 两门闸村一、三组 | H62: 道路130元/平方 | I62: 40 | J62: 40 | K62: 0 | L62: 解决龙虾运输问题及所有村民出行安全，方便生产生活，可覆盖脱贫户4户12人预计增收450元/年。 | M62: 直接受益 | N62: 470人 | O62: 2021 | P62: 两门闸村
A63: 60 | B63: 产业 发展 | C63: 蔬菜种植基地农产品运输通道 | D63: 新建 | E63: 道路硬化400米，宽3米，厚0.2米 | F63: 钱粮湖镇 | G63: 马颈河村四组 | H63: 130元/平方 | I63: 17 | J63: 17 | K63: 0 | L63: 解决脱贫人口的出行及蔬菜基地运输问题，可覆盖脱贫户3户9人预计增收400元/年。 | M63: 直接受益 | N63: 460人 | O63: 2021 | P63: 马颈河村
A64: 61 | B64: 产业 发展 | C64: 龙虾基地农产品运输通道 | D64: 新建 | E64: 道路硬化450米，宽3米，厚0.2米 | F64: 钱粮湖镇 | G64: 高桥村 一组 | H64: 130元/平方 | I64: 19 | J64: 19 | K64: 0 | L64: 解决龙虾基地的运输问题和脱贫人口的安全出行，方便生产生活，可覆盖脱贫户3户11人预计增收400元/年。 | M64: 直接受益 | N64: 120人 | O64: 2021 | P64: 高桥村
A65: 62 | B65: 产业 发展 | C65: 龙虾基地农产品运输通道 | D65: 新建 | E65: 道路硬化800米，宽3米，厚0.2米 | F65: 钱粮湖镇 | G65: 高桥村三组 | H65: 130元/平方 | I65: 33 | J65: 33 | K65: 0 | L65: 解决龙虾基地的运输问题和脱贫人口的安全出行，方便生产生活， 可覆盖脱贫户4户12人预计增收450元/年。 | M65: 直接受益 | N65: 120人 | O65: 2021 | P65: 高桥村
A66: 63 | B66: 产业 发展 | C66: 蔬菜种植基地农产品运输通道 | D66: 新建 | E66: 道路硬化450米，宽3米，厚0.2米 | F66: 钱粮湖镇 | G66: 牛奶湖村四组 | H66: 130元/平方 | I66: 19 | J66: 19 | K66: 0 | L66: 解决龙虾基地的运输问题和脱贫人口的安全出行，方便生产生活，可覆盖脱贫户5户18人预计增收500元/年 | M66: 直接受益 | N66: 232人 | O66: 2021 | P66: 牛奶湖村
A67: 64 | B67: 产业 发展 | C67: 蔬菜种植基地农产品运输通道 | D67: 新建 | E67: 道路硬化820米，宽3米、厚0.2米 | F67: 钱粮湖镇 | G67: 团洲村 一、三组 | H67: 130元/平方 | I67: 32 | J67: 32 | K67: 0 | L67: 解决龙虾基地的运输问题和脱贫人口的安全出行，方便生产生活，可覆盖脱贫户4户12人预计增收450元/年。 | M67: 直接受益 | N67: 980人 | O67: 2021 | P67: 团洲村
A68: 65 | B68: 产业 发展 | C68: 养殖基地道路硬化 | D68: 新建 | E68: 道路硬化500米，宽3米,厚0.2米 | F68: 钱粮湖镇 | G68: 乾隆村一、二组 | H68: 130元/平方 | I68: 21 | J68: 21 | K68: 0 | L68: 完善村级道路，改善脱贫户生产生活条件，可覆盖脱贫户3户11人预计增收400元/年 | M68: 直接受益 | N68: 108人 | O68: 2021 | P68: 乾隆村
A69: 66 | B69: 产业 发展 | C69: 蔬菜种植基地农产品运输通道 | D69: 新建 | E69: 道路硬化560米（三组360米，宽2.5米；四组200米，宽3米） | F69: 钱粮湖镇 | G69: 乾隆村三、四组 | H69: 130元/平方 | I69: 21 | J69: 21 | K69: 0 | L69: 完善村级道路，改善脱贫户生产生活条件，可覆盖4户14人脱贫户预计增收500元/年。 | M69: 直接受益 | N69: 120人 | O69: 2021 | P69: 乾隆村
A70: 67 | B70: 产业 发展 | C70: 蔬菜基地农产品运输通道 | D70: 新建 | E70: 道路硬化1000米，宽3.5米,厚0.2米 | F70: 钱粮湖镇 | G70: 银杯社区四组 | H70: 130元/平方 | I70: 49 | J70: 49 | K70: 0 | L70: 解决种植基地的运输问题和脱贫人口的安全出行，方便生产生活， 可覆盖脱贫户6户18人预计增加300元/年。 | M70: 直接受益 | N70: 130人 | O70: 2021 | P70: 银杯社区
A71: 68 | B71: 产业 发展 | C71: 龙虾基地建设道路硬化 | D71: 新建 | E71: 道路硬化1000米，宽3米,厚0.2米 | F71: 钱粮湖镇 | G71: 西北湖村四组 | H71: 130元/平方 | I71: 41 | J71: 41 | K71: 0 | L71: 解决龙虾基地的运输问题和脱贫人口的安全出行，方便生产生活，可覆盖脱贫户5户18人预计增收500元/年。 | M71: 直接受益 | N71: 100人 | O71: 2021 | P71: 西北湖村
A72: 69 | B72: 产业 发展 | C72: 稻虾养殖基地道路硬化 | D72: 新建 | E72: 硬化道路470米，宽3米,厚0.2米 | F72: 钱粮湖镇 | G72: 幸福村二组、四组 | H72: 130元/平方 | I72: 19 | J72: 19 | K72: 0 | L72: 解决龙虾基地的运输问题和脱贫人口的安全出行，方便生产生活，可覆盖脱贫户4户12人预计增收450元/年。 | M72: 直接受益 | N72: 67人 | O72: 2021 | P72: 幸福村
A73: 70 | B73: 产业 发展 | C73: 稻虾养殖基地道路硬化及桥梁建设 | D73: 新建 | E73: 硬化道路550米，宽3米,厚0.2米；新建桥梁一座 | F73: 钱粮湖镇 | G73: 幸福村一组 | H73: 130元/平方 | I73: 22 | J73: 22 | K73: 0 | L73: 解决龙虾基地的运输问题和脱贫人口的安全出行，方便生产生活， 可覆盖脱贫户6户19人预计增加300元/年。 | M73: 直接受益 | N73: 38人 | O73: 2021 | P73: 幸福村
A74: 71 | B74: 产业 发展 | C74: 稻虾养殖基地道路硬化 | D74: 新建 | E74: 道路硬化550米，宽2.8米,厚0.2米 | F74: 钱粮湖镇 | G74: 文家湾二组 | H74: 130元/平方 | I74: 20 | J74: 20 | K74: 0 | L74: 解决农产品的运输和脱贫人口的出行，方便生产生活， 可覆盖脱贫户3户11人预计增收400元/年。 | M74: 直接受益 | N74: 180人 | O74: 2021 | P74: 文家湾村
A75: 72 | B75: 产业 发展 | C75: 稻虾养殖基地道路硬化 | D75: 新建 | E75: 道路硬化850米，宽3米,厚0.2米 | F75: 钱粮湖镇 | G75: 文家湾三组 | H75: 130元/平方 | I75: 34 | J75: 34 | K75: 0 | L75: 解决龙虾基地的运输问题和脱贫人口的安全出行，方便生产生活， 可覆盖脱贫户4户12人预计增收450元/年。 | M75: 直接受益 | N75: 190人 | O75: 2021 | P75: 文家湾村
A76: 73 | B76: 产业 发展 | C76: 龙虾基地配套水利设施建设 | D76: 新建 | E76: 沟渠硬化长700米，宽0.8米，高1.2米，砖砌 | F76: 钱粮湖镇 | G76: 六门闸社区三组 | H76: 120元/平方 | I76: 30 | J76: 30 | K76: 0 | L76: 完善村级沟渠建设，调整产业结构，助力脱贫户农业生产条件， 可覆盖脱贫户4户14人预计增收500元/年。 | M76: 直接受益 | N76: 500人 | O76: 2021 | P76: 六门闸 社区
A77: 74 | B77: 产业 发展 | C77: 种植基地运输通道硬化工程 | D77: 新建 | E77: 道路硬化420米，宽2.8米，厚0.2米 | F77: 钱粮湖镇 | G77: 分路口社区四组 | H77: 130元/平方 | I77: 16.5 | J77: 16.5 | K77: 0 | L77: 完善社区道路，改善脱贫户生产生活条件， 可覆盖脱贫户6户19人预计增加300元/年。 | M77: 直接受益 | N77: 450人 | O77: 2021 | P77: 分路口社区
A78: 75 | B78: 产业 发展 | C78: 种植基地沟渠硬化工程 | D78: 新建 | E78: 沟渠硬化长600米，（二组300米、宽0.5米，高0.6米；三组190米、宽0.7米，高0.8米；五组110米、宽0.7米，高0.8米） | F78: 钱粮湖镇 | G78: 分路口社区烟墩片二、三、五组 | H78: 120元/平方 | I78: 19.6 | J78: 19.6 | K78: 0 | L78: 完善社区沟渠条件，改善脱贫户种植和生产条件 可覆盖脱贫户5户15人预计增收400元/年 | M78: 直接受益 | N78: 380人 | O78: 2021 | P78: 分路口社区
A79: 76 | B79: 产业 发展 | C79: 稻虾养殖基地主渠连接沟渠硬化 | D79: 新建 | E79: 沟渠硬化325米，沟底2米，坡面高2.2米，宽2.5米，六角板铺设 | F79: 钱粮湖镇 | G79: 三角闸村五组 | H79: 120元/平方 | I79: 19 | J79: 19 | K79: 0 | L79: 解决龙虾基地灌溉畅通问题 提升脱贫人口30人，人均增收500元以上。 | M79: 直接受益 | N79: 450人 | O79: 2021 | P79: 三角闸村
A80: 77 | B80: 产业 发展 | C80: 芥菜基地产业运输通道 | D80: 新建 | E80: 道路硬化470米，宽3米 | F80: 钱粮湖镇 | G80: 天星洲村一组 | H80: 130元/平方 | I80: 18 | J80: 18 | K80: 0 | L80: 改善农产品运输及居民安全出行问题，方便生产生活，可覆盖脱贫户5户15人预计增收400元/年。 | M80: 直接受益 | N80: 400人 | O80: 2021 | P80: 天星洲村
A81: 78 | B81: 产业 发展 | C81: 稻虾养殖基地沟渠硬化 | D81: 新建 | E81: 沟渠硬化长800米，面宽2.4米，底宽1米，高1.5米，六方板 | F81: 钱粮湖镇 | G81: 釆桑湖渔场三组 | H81: 120元/平方 | I81: 27 | J81: 27 | K81: 0 | L81: 解决脱贫户的居住环境及出行以及蔬菜灌溉问题，可覆盖脱贫户4户12人预计增收450元/年 | M81: 直接受益 | N81: 284人 | O81: 2021 | P81: 采桑湖渔场
A82: 79 | B82: 产业 发展 | C82: 产业基地道路硬化 | D82: 新建 | E82: 道路硬化1100米，宽3米 | F82: 钱粮湖镇 | G82: 托龙山社区三组 | H82: 130元/平方 | I82: 46 | J82: 46 | K82: 0 | L82: 完善村级道路建设，调整产业结构，助力脱贫户农业生产，可覆盖脱贫户9户21人预计增收350/年。 | M82: 直接受益 | N82: 850人 | O82: 2021 | P82: 托龙山社区
A83: 80 | B83: 产业 发展 | C83: 稻虾养殖基地沟渠硬化 | D83: 新建 | E83: 沟渠硬化280米，宽1.2米，高1.3米 | F83: 钱粮湖镇 | G83: 观音村四组 | H83: 120元/平方 | I83: 18 | J83: 18 | K83: 0 | L83: 解决四组龙虾基地出水难问题 提升脱贫人口30人，人均增收500元以上。 | M83: 直接受益 | N83: 130人 | O83: 2021 | P83: 观音村
A84: 81 | B84: 产业 发展 | C84: 水稻种植基地沟渠硬化 | D84: 新建 | E84: 新建250机埠及沟渠硬化240米，面宽3米，底宽1.5米，高2.2米，六角板 | F84: 钱粮湖镇 | G84: 观音村二组 | H84: 120元/平方 | I84: 19.5 | J84: 19.5 | K84: 0 | L84: 解决低排沟出水难问题，提升脱贫人口20人，人均增收400元以上。 | M84: 直接受益 | N84: 300人 | O84: 2021 | P84: 观音村
A85: 82 | B85: 产业 发展 | C85: 蔬菜基地农产品运输通道 | D85: 新建 | E85: 道路硬化400米，宽2.5米，厚0.2米 | F85: 钱粮湖镇 | G85: 银杯社区四组 | H85: 130元/平方米 | I85: 14.5 | J85: 14.5 | K85: 0 | L85: 解决农产品的运输和脱贫人口的出行，方便生产生活， 可覆盖村脱贫4户12人均增350元/年。 | M85: 直接受益 | N85: 180人 | O85: 2021 | P85: 银杯社区
A86: 83 | B86: 产业 发展 | C86: 稻虾基地农产品运输通道 | D86: 新建 | E86: 道路硬化长130米，宽2.8米，厚0.2米 | F86: 钱粮湖镇 | G86: 六门闸 社区二组 | H86: 130元/平方米 | I86: 5 | J86: 5 | K86: 0 | L86: 完善村级道路建设，调整产业结构，助力脱贫户农业生产条件，可覆盖脱贫户3户9人预计增收400元/年 | M86: 直接受益 | N86: 280人 | O86: 2021 | P86: 六门闸 社区
A87: 84 | B87: 产业 发展 | C87: 蔬菜基地农产品运输通道 | D87: 新建 | E87: 道路硬化120米，宽3.5米，厚0.2米；修建会车台75米长，2.2米宽 | F87: 钱粮湖镇 | G87: 高桥村 一组 | H87: 130元/平方米 | I87: 9 | J87: 9 | K87: 0 | L87: 解决龙虾基地的运输问题和脱贫人口的安全出行，方便生产生活，可覆盖脱贫户3户10人预计增收400元/年。 | M87: 直接受益 | N87: 120人 | O87: 2021 | P87: 高桥村
A88: 85 | B88: 产业 发展 | C88: 稻虾基地农产品运输通道 | D88: 新建 | E88: 道路硬化500米，宽2.5米，厚0.2米 | F88: 钱粮湖镇 | G88: 银杯社区五组 | H88: 130元/平方米 | I88: 16 | J88: 16 | K88: 0 | L88: 解决农产品的运输和脱贫人口的出行，方便生产生活，可覆盖脱贫户户10人预计增收400元/年 | M88: 直接受益 | N88: 98人 | O88: 2021 | P88: 银杯社区
A89: 86 | B89: 产业 发展 | C89: 稻虾养殖基地沟渠硬化 | D89: 新建 | E89: 沟渠硬化350米，底宽2.5米，面宽5米，高1.5米，六角板铺设 | F89: 钱粮湖镇 | G89: 三角闸村三组 | H89: 120元/平方 | I89: 19.2 | J89: 19.2 | K89: 0 | L89: 解决龙虾基地灌溉畅通问题， 可覆盖村脱贫4户12人均增350元/年。 | M89: 直接受益 | N89: 300人 | O89: 2021 | P89: 三角闸村
A90: 87 | B90: 产业 发展 | C90: 特种鱼养殖基地机埠新建 | D90: 新建 | E90: 特种鱼池基地供水新修机埠三个 | F90: 钱粮湖镇 | G90: 丰收村 四组 | H90: 按实际标准 | I90: 12 | J90: 12 | K90: 0 | L90: 解决1200亩鱼池灌溉用水问题，可覆盖脱贫户4户11人预计增收400元/年。 | M90: 直接受益 | N90: 135人 | O90: 2021 | P90: 丰收村
A91: 88 | B91: 产业 发展 | C91: 蔬菜基地配套水利设施 | D91: 新建 | E91: 硬化516米(六合板方式硬化），面宽2.8米，底宽1.8米，高1.2米 | F91: 良心堡镇 | G91: 望君洲村一组 | H91: 717元/米 | I91: 25 | J91: 25 | K91: 0 | L91: 产业扶贫基地基础设施升级，改善生产用水环境，提升脱贫人口收益， 可覆盖脱贫户5户16人预计增收350元/年。 | M91: 直接受益 | N91: 100人 | O91: 2021 | P91: 望君洲村
A92: 89 | B92: 产业 发展 | C92: 稻虾基地配套水利设施 | D92: 新建 | E92: 沟渠硬化650米，面宽1.8米,底宽0.6米,高0.8米 | F92: 良心堡镇 | G92: 七星湖村二组 | H92: 300元/米 | I92: 22 | J92: 22 | K92: 0 | L92: 产业扶贫基地基础设施升级，改善生产用水环境，提升脱贫人口收益，可覆盖脱贫户3户11人预计增收400元/年 | M92: 直接受益 | N92: 80人 | O92: 2021 | P92: 七星湖村
A93: 90 | B93: 产业 发展 | C93: 蔬菜基地农产品运输通道 | D93: 新建 | E93: 路硬化总长600米，宽3米；新建桥梁一座（高3.5米，跨度14米） | F93: 良心堡镇 | G93: 黄泥港村一组 | H93: 336元/米 | I93: 26 | J93: 26 | K93: 0 | L93: 产业扶贫基础设施升级，提升脱贫人口收益，可覆盖脱贫户4户13人预计增收450元/年。 | M93: 直接受益 | N93: 90人 | O93: 2021 | P93: 黄泥岗村
A94: 91 | B94: 产业 发展 | C94: 油菜花基地设施建设 | D94: 新建 | E94: 沟渠硬化长530米，底宽0.6米，高0.8米 | F94: 良心堡镇 | G94: 福星村 二组 | H94: 300元/米 | I94: 16 | J94: 16 | K94: 0 | L94: 产业扶贫基地基础设施升级，提升脱贫人口收益，可覆盖脱贫户3户11人预计增收300元/年 | M94: 直接受益 | N94: 80人 | O94: 2021 | P94: 福星村
A95: 92 | B95: 产业 发展 | C95: 吊瓜子种植基地沟渠硬化 | D95: 新建 | E95: 沟渠硬化430米，宽0.6米，高0.8米 | F95: 良心堡镇 | G95: 悦来河村四组 | H95: 500元/米 | I95: 13 | J95: 13 | K95: 0 | L95: 产业扶贫基地基础设施升级，提升脱贫人口收益，可覆盖脱贫户5户15人预计增收300元/年 | M95: 直接受益 | N95: 60人 | O95: 2021 | P95: 悦来河村
A96: 93 | B96: 产业 发展 | C96: 蔬菜基地运输道路设施建设 | D96: 新建 | E96: 朱凉洲至胡志辉路段硬化628米，宽3米，厚0.2米 | F96: 良心堡镇 | G96: 福星村 二组 | H96: 414元/米 | I96: 25 | J96: 25 | K96: 0 | L96: 产业扶贫基地基础设施升级，提升脱贫人口收益，可覆盖脱贫户4户13人预计增收350元/年 | M96: 直接受益 | N96: 70人 | O96: 2021 | P96: 福星村
A97: 94 | B97: 产业 发展 | C97: 蔬菜基地运输道路设施建设 | D97: 新建 | E97: 道路硬化420米，宽2.5米，厚0.2米 | F97: 良心堡镇 | G97: 黄泥港村 二组 | H97: 311元/米 | I97: 15 | J97: 15 | K97: 0 | L97: 产业扶贫基础设施升级，提升脱贫人口收益，可覆盖脱贫户4户11人预计增收300元/年 | M97: 直接受益 | N97: 100人 | O97: 2021 | P97: 黄泥岗村
A98: 95 | B98: 产业 发展 | C98: 龙虾基地运输通道硬化 | D98: 新建 | E98: 道路硬化780米，宽3米，厚0.2米，会车台2处，32平方米 | F98: 良心堡镇 | G98: 七星湖村四组 | H98: 436元/米 | I98: 33 | J98: 33 | K98: 0 | L98: 产业扶贫基地基础设施升级，提升脱贫人口收益，可覆盖脱贫户5户13人预计增收400元/年 | M98: 直接受益 | N98: 70人 | O98: 2021 | P98: 七星湖村
A99: 96 | B99: 产业 发展 | C99: 果蔬基地运输通道硬化 | D99: 新建 | E99: 道路硬化680米，宽3米，厚0.2米 | F99: 良心堡镇 | G99: 悦来河村一、二、四组 | H99: 411元/米 | I99: 28.5 | J99: 28.5 | K99: 0 | L99: 产业扶贫基地基础设施升级，提高运输效率，提升脱贫人口收益，可覆盖脱贫户4户13人预计增收450元/年 | M99: 直接受益 | N99: 80人 | O99: 2021 | P99: 悦来河村
A100: 97 | B100: 产业 发展 | C100: 蔬菜基地农产品运输通道 | D100: 新建 | E100: 道路硬化700米，宽3米，厚0.2米 | F100: 良心堡镇 | G100: 福星村 三组 | H100: 420元/米 | I100: 29.5 | J100: 29.5 | K100: 0 | L100: 产业扶贫基地升级，提升脱贫人口收益，可覆盖脱贫户4户13人预计增收450元/年 | M100: 直接受益 | N100: 150人 | O100: 2021 | P100: 福星村
A101: 98 | B101: 产业 发展 | C101: 檀树村河头片、林园片沟渠硬化 | D101: 新建 | E101: 硬化沟渠1120米六合版，面宽2米、底宽0.6米、高宽0.8米 | F101: 良心堡镇 | G101: 檀树村 一、四组 | H101: 320元/米 | I101: 33.5 | J101: 33.5 | K101: 0 | L101: 产业扶贫基地基础设施升级，提高运输效率，提升脱贫人口收益，可覆盖脱贫户3户11人预计增收350元/年 | M101: 直接受益 | N101: 210人 | O101: 2021 | P101: 檀树村
A102: 99 | B102: 产业 发展 | C102: 蔬菜基地运输道路设施建设 | D102: 新建 | E102: 道路硬化515米，宽3.5米（其中120米宽2.5米） | F102: 良心堡镇 | G102: 维新村 二、三组 | H102: 454元/米 | I102: 23 | J102: 23 | K102: 0 | L102: 产业扶贫基础设施升级，提升脱贫人口收益，可覆盖脱贫户4户12人预计增收400元/年 | M102: 直接受益 | N102: 110人 | O102: 2021 | P102: 维新村
A103: 100 | B103: 产业 发展 | C103: 蔬菜基地运输道路设施建设 | D103: 新建 | E103: 林业队中心路硬化580米，宽3米，厚0.2米 | F103: 良心堡镇 | G103: 杨蔸湖村六组 | H103: 379元/米 | I103: 23 | J103: 23 | K103: 0 | L103: 产业扶贫基地基础设施升级，提升脱贫人口收益，可覆盖脱贫户5户16人预计增收300元/年 | M103: 直接受益 | N103: 140人 | O103: 2021 | P103: 杨蔸湖村
A104: 101 | B104: 产业 发展 | C104: 蔬菜基地运输道路设施建设 | D104: 新建 | E104: 道路硬化410米，宽3米，厚0.2米 | F104: 良心堡镇 | G104: 团结村 四组 | H104: 479元/米 | I104: 17.5 | J104: 17.5 | K104: 0 | L104: 产业扶贫基地升级，提升脱贫人口收益，可覆盖脱贫户3户10人预计增收350元/年 | M104: 直接受益 | N104: 100人 | O104: 2021 | P104: 团结村
A105: 102 | B105: 产业 发展 | C105: 蔬菜基地运输道路设施建设 | D105: 新建 | E105: 道路硬化600米，宽3米，厚0.2米 | F105: 良心堡镇 | G105: 黄泥港村三组 | H105: 130元/米 | I105: 21 | J105: 21 | K105: 0 | L105: 产业扶贫基础设施升级，提升脱贫人口收益，可覆盖脱贫户4户13人预计增收400元/年 | M105: 直接受益 | N105: 95人 | O105: 2021 | P105: 黄泥岗村
A106: 103 | B106: 产业 发展 | C106: 蔬菜基地基础设施建设 | D106: 改建 | E106: 道路硬化310米(分三段),宽3米，厚0.2米 | F106: 柳林洲 街道办事处 | G106: 濠河村 毛田组 | H106: 400/平方米 | I106: 13 | J106: 13 | K106: 0 | L106: 改善居民点安全出行问题，方便生产生活，可覆盖脱贫户3户9人预计增收400元/年 | M106: 直接受益 | N106: 88人 | O106: 2021 | P106: 濠河村
A107: 104 | B107: 产业 发展 | C107: 蔬菜基地基础设施建设 | D107: 改建 | E107: 道路硬化长400米,宽3米,厚0.2米 | F107: 柳林洲 街道办事处 | G107: 濠河村 毛田组 | H107: 40万/公里 | I107: 17.5 | J107: 17.5 | K107: 0 | L107: 解决毛田组脱贫人口30人农作物运输 可覆盖脱贫户3户10人预计增收450元/年 | M107: 直接受益 | N107: 110人 | O107: 2021 | P107: 濠河村
A108: 105 | B108: 产业 发展 | C108: 反嘴组至农科组小龙虾养殖基地基础设施建设 （东西向） | D108: 新建 | E108: 道路硬化长680m,宽3m,厚0.2米 | F108: 柳林洲 街道办事处 | G108: 反嘴组至农科组 | H108: 40万/公里 | I108: 28 | J108: 28 | K108: 0 | L108: 解决反嘴组及农科组脱贫人口33人农作物运输，可覆盖脱贫户5户17人预计增收350元/年 | M108: 直接受益 | N108: 98人 | O108: 2021 | P108: 上反嘴村
A109: 106 | B109: 产业 发展 | C109: 反嘴组至农科组小龙虾养殖基地基础设施建设 （南北向） | D109: 新建 | E109: 道路硬化长720m,宽3m,厚0.2米 | F109: 柳林洲 街道办事处 | G109: 反嘴组至农科组 | H109: 40万/公里 | I109: 30 | J109: 30 | K109: 0 | L109: 解决反嘴组及农科组脱贫人口33人农作物运输，可覆盖脱贫户3户11人预计增收300元/年 | M109: 直接受益 | N109: 100人 | O109: 2021 | P109: 上反嘴村
A110: 107 | B110: 产业 发展 | C110: 龙虾基地沟渠硬化 | D110: 新建 | E110: 沟渠硬化260米 宽2米，高1.4米（砖砌） | F110: 柳林洲 街道办事处 | G110: 长沟子村双港组 | H110: 400/平方米 | I110: 16 | J110: 16 | K110: 0 | L110: 解决小龙虾养殖基地排水、灌溉问题 可覆盖脱贫户3户10人预计增收300元/年 | M110: 直接受益 | N110: 147人 | O110: 2021 | P110: 长沟子村
A111: 108 | B111: 产业 发展 | C111: 龙虾基地基础设施建设 | D111: 新建 | E111: 道路硬化650米，宽3米，厚0.2米 | F111: 柳林洲 街道办事处 | G111: 长沟子村五星组 | H111: 40万/公里 | I111: 28 | J111: 28 | K111: 0 | L111: 解决小龙虾养殖基地运输及脱贫人口出行，可覆盖脱贫户4户11人预计增收350元/年 | M111: 直接受益 | N111: 255人 | O111: 2021 | P111: 长沟子村
A112: 109 | B112: 产业 发展 | C112: 龙虾基地沟渠硬化 | D112: 新建 | E112: 沟渠硬化400米 底宽2米，面宽3米，高1.5米（六合板） | F112: 柳林洲 街道办事处 | G112: 长沟子村余家组 | H112: 400/平方米 | I112: 19.5 | J112: 19.5 | K112: 0 | L112: 解决小龙虾养殖基地排水、灌溉问题 可覆盖脱贫户5户16人预计增收400元/年 | M112: 直接受益 | N112: 268人 | O112: 2021 | P112: 长沟子村
A113: 110 | B113: 产业 发展 | C113: 腾辉蔬菜专业合作社产业基地沟渠硬化 | D113: 新建 | E113: 沟渠硬化长420米，内宽0.6米，高1米（砖砌） | F113: 柳林洲 街道办事处 | G113: 芦花洲村杨二组 | H113: 400/平方米 | I113: 21 | J113: 21 | K113: 0 | L113: 解决蔬菜基地灌溉和排水问题 可覆盖脱贫户4户12人预计增收300元/年 | M113: 直接受益 | N113: 155人 | O113: 2021 | P113: 芦花洲村
A114: 111 | B114: 产业 发展 | C114: 蔬菜种植基地基础设施建设 | D114: 新建 | E114: 蔬菜基地道路，850米，宽2.8米，厚0.2米 | F114: 柳林洲 街道办事处 | G114: 芦花洲村新芦组 | H114: 40万/公里 | I114: 33 | J114: 33 | K114: 0 | L114: 解决蔬菜基运输畅通及村民出行问题 可覆盖脱贫户4户13人预计增收350元/年 | M114: 直接受益 | N114: 140人 | O114: 2021 | P114: 芦花洲村
A115: 112 | B115: 产业 发展 | C115: 蔬菜基地基础设施建设 | D115: 新建 | E115: 道路硬化长460米，宽3米，高0.2米 | F115: 柳林洲 街道办事处 | G115: 林角社区林角组 | H115: 40万/公里 | I115: 19 | J115: 19 | K115: 0 | L115: 解决农作物运输畅通及人员出行问题 可覆盖脱贫户3户10人预计增收300元/年 | M115: 直接受益 | N115: 220人 | O115: 2021 | P115: 林角社区
A116: 113 | B116: 产业 发展 | C116: 黄桃种植基地基础设施建设 | D116: 新建 | E116: 道路硬化长650米，宽3米，厚0.2米 | F116: 柳林洲 街道办事处 | G116: 望城社区 龙湾组 | H116: 40万/公里 | I116: 28 | J116: 28 | K116: 0 | L116: 解决黄桃基地的运输，受益脱贫人口30人，可覆盖脱贫户5户17人预计增收350元/年 | M116: 直接受益 | N116: 300人 | O116: 2021 | P116: 望城社区
A117: 114 | B117: 产业 发展 | C117: 龙虾基地基础设施建设 | D117: 新建 | E117: 道路硬化总长260米，（其中160米，宽4米，100米，宽3米），厚0.2米 | F117: 柳林洲 街道办事处 | G117: 二洲子村二洲子组 | H117: 40万/公里 | I117: 14 | J117: 14 | K117: 0 | L117: 解决小龙虾养殖基地运输及脱贫户出行，可覆盖脱贫户4户12人预计增收450元/年 | M117: 直接受益 | N117: 230人 | O117: 2021 | P117: 二洲子村
A118: 115 | B118: 产业 发展 | C118: 蔬菜基地基础设施建设 （李金秀屋后） | D118: 新建 | E118: 道路硬化长220米，宽2.8米，厚0.2米 | F118: 柳林洲 街道办事处 | G118: 二洲子村茅屋岭组 | H118: 40万/公里 | I118: 8.8 | J118: 8.8 | K118: 0 | L118: 解决蔬菜基地运输及脱贫人口出行 可覆盖脱贫户3户9人预计增收300元/年 | M118: 直接受益 | N118: 320人 | O118: 2021 | P118: 二洲子村
A119: 116 | B119: 产业 发展 | C119: 蔬菜基地基础设施建设 （杨国华屋后） | D119: 新建 | E119: 道路硬化长350米，宽3米，厚0.2米 | F119: 柳林洲 街道办事处 | G119: 二洲子村茅屋岭组 | H119: 40万/公里 | I119: 15 | J119: 15 | K119: 0 | L119: 解决蔬菜养殖基地运输及脱贫人口户出行，可覆盖脱贫户4户14人预计增收400元/年 | M119: 直接受益 | N119: 300人 | O119: 2021 | P119: 二洲子村
A120: 117 | B120: 产业 发展 | C120: 蔬菜基地沟渠硬化 | D120: 新建 | E120: 沟渠硬化长300米，宽1.2米，高1米（砖砌） | F120: 柳林洲 街道办事处 | G120: 二洲子村茅屋岭组 | H120: 400/平方米 | I120: 16.5 | J120: 16.5 | K120: 0 | L120: 解决蔬菜基地灌溉和排水问题，可覆盖脱贫户4户13人预计增收450元/年 | M120: 直接受益 | N120: 150人 | O120: 2021 | P120: 二洲子村
A121: 118 | B121: 产业 发展 | C121: 蔬菜基地基础设施建设 （韩勇屋旁） | D121: 新建 | E121: 道路硬化长300米，宽3米，厚0.2米 | F121: 柳林洲 街道办事处 | G121: 二洲子村茅屋岭组 | H121: 40万/公里 | I121: 12.5 | J121: 12.5 | K121: 0 | L121: 解决蔬菜基地运输及脱贫人口出行 可覆盖脱贫户3户9人预计增收400元/年 | M121: 直接受益 | N121: 220人 | O121: 2021 | P121: 二洲子村
A122: 119 | B122: 产业 发展 | C122: 小龙虾养殖基地基础设施建设 | D122: 新建 | E122: 道路硬化长670米、宽3米、厚0.2米 | F122: 柳林洲 街道办事处 | G122: 瓦湾村 瓦湾组至熊市组 | H122: 40万/公里 | I122: 28 | J122: 28 | K122: 0 | L122: 解决小龙虾养殖基地运输及脱贫人口出行，可覆盖脱贫户6户19人预计增收350元/年 | M122: 直接受益 | N122: 150人 | O122: 2021 | P122: 瓦湾村
A123: 120 | B123: 产业 发展 | C123: 湖南欣晟果蔬农民专业合作沟渠硬化（东） | D123: 新建 | E123: 沟渠硬化长500米，宽1米，高1米 | F123: 柳林洲 街道办事处 | G123: 挂口村 黄岸组 | H123: 400/平方米 | I123: 23 | J123: 23 | K123: 0 | L123: 解决基地灌溉和排水问题，可覆盖该村脱贫户23人，年增收400元以上 | M123: 直接受益 | N123: 256人 | O123: 2021 | P123: 挂口村
A124: 121 | B124: 产业 发展 | C124: 挂口村黄岸组中心田田间路硬化 | D124: 新建 | E124: 道路硬化370米，宽2.5米，厚0.2米 | F124: 柳林洲 街道办事处 | G124: 挂口村 | H124: 400/平方米 | I124: 13 | J124: 13 | K124: 0 | L124: 解决农户种植出行出产问题，可覆盖该脱贫户4户15人，年增收400元以上 | M124: 直接受益 | N124: 300人 | O124: 2021 | P124: 挂口村
A125: 122 | B125: 产业 发展 | C125: 湖南欣晟果蔬农民专业合作社沟渠硬化（西） | D125: 新建 | E125: 沟渠硬化长500米，宽1米，高1米 | F125: 柳林洲 街道办事处 | G125: 挂口村 黄岸组 | H125: 400/平方米 | I125: 23 | J125: 23 | K125: 0 | L125: 解决基地灌溉和排水问题，可覆盖该脱贫户6户23人，年增收400元以上 | M125: 直接受益 | N125: 190人 | O125: 2021 | P125: 挂口村
A126: 123 | B126: 产业 发展 | C126: 才鱼养殖基地基础设施建设 | D126: 新建 | E126: 道路硬化长800米，宽3米，厚0.2米 | F126: 柳林洲 街道办事处 | G126: 永城村二百弓组 | H126: 40万元/公里 | I126: 32 | J126: 32 | K126: 0 | L126: 解决二百弓组脱贫人口45人养殖才鱼、蔬菜等农作物运输，可覆盖该脱贫户4户15人，预计年增收500元 | M126: 直接受益 | N126: 110人 | O126: 2021 | P126: 永城村
A127: 124 | B127: 产业 发展 | C127: 龙虾养殖基地基础设施建设 | D127: 新建 | E127: 道路硬化长450米，宽3米，厚0.2米 | F127: 柳林洲 街道办事处 | G127: 永城村二百弓组 | H127: 40万元/公里 | I127: 18.5 | J127: 18.5 | K127: 0 | L127: 解决二百弓组脱贫人口31人养殖才鱼、龙虾等农作物运输，可覆盖该脱贫户3户11人，预计年增收300元 | M127: 直接受益 | N127: 180人 | O127: 2021 | P127: 永城村
A128: 125 | B128: 产业 发展 | C128: 蔬菜基地农产品运输通道 | D128: 新建 | E128: 道路硬化长120米，宽3米，厚0.2米 | F128: 柳林洲 街道办事处 | G128: 长沟子村官洲组 | H128: 40万元/公里 | I128: 5.5 | J128: 5.5 | K128: 0 | L128: 可改善农产品运输及居民安全出行问题，方便生产生活，可覆盖脱贫户3户12人，人均增收400元 | M128: 直接受益 | N128: 226人 | O128: 2021 | P128: 长沟子村
A129: 126 | B129: 产业 发展 | C129: 蔬菜基地沟渠硬化 | D129: 新建 | E129: 沟渠硬化长630米，面宽1.2米，底宽0.6米，高0.8米 | F129: 芦苇总场 | G129: 二洲管理站瓦湾片 | H129: 400/平方米 | I129: 19 | J129: 19 | K129: 0 | L129: 解决蔬菜基地灌溉和排水问题，可覆盖该村脱贫户5户19人，年增收350元以上 | M129: 直接受益 | N129: 156人 | O129: 2021 | P129: 芦苇总场
A130: 127 | B130: 产业 发展 | C130: 种养业农副产品运输道路硬化 | D130: 新建 | E130: 道路硬化长450米(李庆云户道路长80米，宽3米;庞盛华户道路长40米，宽2.6米;姚君才户道路长30米，宽3米;赵姣伢户道路长40米，宽2.5米;杨建科户至跃进渠道路长260米，宽2.7米 | F130: 水产养殖场 | G130: 黄泥套渔场 | H130: 400/平方米 | I130: 18.5 | J130: 18.5 | K130: 0 | L130: 解决农产品的运输和脱贫人口的出行，方便生产生活，可覆盖该渔场脱贫户5户19人，年增收300元以上 | M130: 直接受益 | N130: 217人 | O130: 2021 | P130: 水产养殖场
A131: 128 | B131: 危房 改造 | C131: 危房改造 | D131: 新建 | E131: 解决脱贫户和边缘户住房安全问题 | F131: 全区 | G131: —— | H131: 按实际标准 | I131: 50 | J131: 50 | K131: 0 | L131: 保障全区脱贫户、边缘户、低收入人口住房安全 | M131: 直接受益 | N131: 全区 | O131: 2021 | P131: 区住建局
A132: 129 | B132: 老区 发展 | C132: 老区发展 | D132: 新建 | E132: 完善村级基础设施建设，巩固脱贫攻坚成果，拓展乡村振兴 | F132: 全区 | G132: —— | H132: 按实际标准 | I132: 30 | J132: 30 | K132: 0 | L132: 完善村级基础设施建设，巩固脱贫攻坚成果，拓展乡村振兴。直接帮扶 | M132: 直接受益 | N132: 5个镇村 | O132: 2021 | P132: 区民政局
A133: 130 | B133: 光伏 扶贫 | C133: 光伏发电 | D133: 维护保养 | E133: 对全区四个村级光伏电站进行维护保养，确保稳定运行。 | F133: 全区 | G133: —— | H133: 按实际标准 | I133: 10 | J133: 10 | K133: 0 | L133: 发展壮大村集体经济，提高村集体发展公益事业和提供公共服务能力。 | M133: 资产收益分红 | N133: 4个村 | O133: 2021 | P133: 区乡村振兴局、区发改委
A134: 131 | B134: 健康 扶贫 | C134: 健康扶贫 | D134: 新建 | E134: 用于支持脱贫户大病医疗保险、救助等方向 | F134: 全区 | G134: —— | H134: 按实际标准 | I134: 30 | J134: 30 | K134: 0 | L134: 落实脱贫人口重病保障政策，防止因病返贫。 | M134: 直接受益 | N134: 脱贫户、边缘户等 | O134: 2021 | P134: 区医保局
A135: 132 | B135: 教育 扶贫 | C135: “雨露计划”高职、中职、中技学历职业教育 | D135: 新建 | E135: 提高教育素质，脱贫学生每学期助学补助 | F135: 全区 | G135: —— | H135: 1500元/人 | I135: 50 | J135: 50 | K135: 0 | L135: 提高脱贫对象综合素质增强就业本领 直接帮扶 | M135: 直接帮扶 | N135: 建档立卡户学生 | O135: 2021 | P135: 区乡村振兴局、区教育局
A136: 133 | B136: 消费 扶贫 | C136: 消费扶贫 | D136: 新建 | E136: 用于支持脱贫户农产品产销对接等消费扶贫方向 | F136: 全区 | G136: —— | H136: 按实际标准 | I136: 30 | J136: 30 | K136: 0 | L136: 积极组织开展农产品展销会，三专一平台建设等，扩宽农产品销售渠道。 | M136: 直接帮扶、委托帮扶等。 | N136: 建档立卡家庭、边缘户 | O136: 2021 | P136: 区商粮局
A137: 134 | B137: 安全 饮水 | C137: 安全饮水 | D137: 新建 | E137: 供水管网延伸以及提升改造等，饮水安全有保障 | F137: 全区 | G137: —— | H137: 按实际标准 | I137: 50 | J137: 50 | K137: 0 | L137: 解决安全用水问题，提升群众生活水平，直接帮扶 | M137: 直接受益 | N137: 2000人 | O137: 2021 | P137: 区水利局
A138: 135 | B138: 产业 发展 | C138: 创业致富带头人培训 | D138: 新建 | E138: 提高脱贫人口创业发展增收能力，激发内生动力 | F138: 全区 | G138: —— | H138: 按实际标准 | I138: 40 | J138: 40 | K138: 0 | L138: 通过发展地方特色产业稳定增收、持续脱贫，巩固脱贫攻坚成果服务 直接帮扶 | M138: 委托帮扶 | N138: 1000人 | O138: 2021 | P138: 区乡村振兴局
A139: 136 | B139: 小额 信贷 | C139: 小额信贷财政贴息 | D139: 新建 | E139: 对脱贫户和边缘户申请贷款利息进行全额补贴。 | F139: 全区 | G139: —— | H139: 按实际标准 | I139: 50 | J139: 50 | K139: 0 | L139: 扶持贷款脱贫户发展产业，达到稳定增收。 | M139: 直接帮扶 | N139: 脱贫户、边缘户 | O139: 2021 | P139: 区乡村振兴局
A140: 137 | B140: 产业 发展 | C140: 重点产业扶贫项目 | D140: 新建 | E140: 重点产业扶贫项目 | F140: 全区 | G140: —— | H140: 按实际标准 | I140: 80 | J140: 80 | K140: 0 | L140: 产业扶贫基地建设，提升脱贫人口收益。 | M140: 收益分红、务工奖补、订单收购 | N140: 1000人 | O140: 2021 | P140: 区农业农村局
A141: 138 | B141: 产业 发展 | C141: 四跟四走产业项目 | D141: 新建 | E141: 培植新型农业经营组织， 发挥其示范、带动、辐射作用。 | F141: 全区 | G141: —— | H141: 按实际标准 | I141: 100 | J141: 100 | K141: 0 | L141: 在全区选择扶持新型农业经营主体2个以上，发挥其示范、引领、带动作用，帮助脱贫户、边缘户通过发展产业增加收入。 | M141: 资产收益分红、务工奖补、订单收购等 | N141: 2个村以上 | O141: 2021 | P141: 区农业农村局
A142: 139 | B142: 产业 发展 | C142: 产业奖补 | D142: 新建 | E142: 对脱贫户、边缘户发展农业生产以奖代扶。 | F142: 全区 | G142: —— | H142: 按实际标准 | I142: 100 | J142: 100 | K142: 0 | L142: 以奖代补，引导脱贫人口发展特色产业，巩固脱贫成果。 | M142: 直接帮扶 | N142: 全区种养殖业农户 | O142: 2021 | P142: 区农业局
A143: 140 | B143: 产业 发展 | C143: 产业技术培训 | D143: 新建 | E143: 用于对全区种养殖业农户进行种养殖业技能培训。 | F143: 全区 | G143: —— | H143: 按实际标准 | I143: 30 | J143: 30 | K143: 0 | L143: 提高脱贫人口劳动技能，让脱贫户掌握一技之长，拓宽增收路径。 | M143: 直接帮扶 | N143: 全区种养殖业农户 | O143: 2021 | P143: 区农业农村局
A144: 141 | B144: 基础 设施 | C144: 农村人居环境整治 | D144: 新建 | E144: 用于水、电、路、网等农业生产配套设施及垃圾清运、厕所改造等小型公益性生活设施 | F144: 全区 | G144: —— | H144: 按实际标准 | I144: 100 | J144: 100 | K144: 0 | L144: 完善村基础设施建设，健全农村人居环境设施，创建美丽宜居村庄。 | M144: 直接受益 | N144: 5镇2场 | O144: 2021 | P144: 区农业农村局
A145: 142 | B145: 产业 发展 | C145: 转产转业帮扶 | D145: 新建 | E145: 用于支持脱贫户和边缘易致贫户退捕转型、养殖尾水治理、农药化肥减量受损户家庭帮扶。 | F145: 全区 | G145: —— | H145: 按实际标准 | I145: 160 | J145: 160 | K145: 0 | L145: 对禁捕退捕渔民转产转型进行帮扶，达到稳定增收。 | M145: 直接帮扶 | N145: 200人 | O145: 2021 | P145: 区农业农村局、镇（街道）场
A146: 143 | B146: 返贫致贫监测帮扶 | C146: 防贫保和特惠保 | D146: 续保 | E146: 对全区脱贫户继续购买扶贫特惠保，对全区所有农业人口购买返贫致贫“防贫保”。 | F146: 全区 | G146: —— | H146: 60元/年.人和30元/年.人 | I146: 89.1 | J146: 89.1 | K146: 0 | L146: 对全区脱贫户和边缘户通过扶贫特惠保降低其意外事故风险；对全区农业人口购买防贫保，防范其返贫致贫。 | M146: 直接帮扶 | N146: 17.5万人 | O146: 2021 | P146: 乡村振兴局
A147: 144 | B147: 稳岗就业 | C147: 公益岗位补助 | D147: 新建 | E147: 拓展镇村人居环境整治、乡村治理等公益事业岗位，用于支持易返贫致贫人口和低收入人口就业增收。 | F147: 全区 | G147: —— | H147: 按实际标准 | I147: 200 | J147: 200 | K147: 0 | L147: 结合我区实际，采取积极有效的措施，促进脱贫人口就地就业。 | M147: 务工帮扶、以工代赈、公益事业 | N147: 1000人 | O147: 2021 | P147: 镇（街道）场、区就业服务中心
A148: 145 | B148: 合 计 | I148: =SUM(I4:I147) -> 3875.8 | J148: =SUM(J4:J147) -> 3875.8 | K148: 0
